fUSD/lending_fUSD_20241207
["ID","MTS","AMOUNT","RATE_DAILY","PERIOD"]
[344515472,1733534608385,-500.0,8.767e-05,2]
[344515473,1733534608415,-500.0,8.767e-05,2]
[344515474,1733534608444,-707.95,8.767e-05,2]
[344515475,1733534608479,-6860.44,8.767e-05,2]
[344515476,1733534608508,-500.0,8.767e-05,2]
[344515477,1733534608544,-1151.79,8.767e-05,2]
[344515478,1733534608573,-2462.88,8.767e-05,2]
[344515479,1733534608603,-1485.49,8.767e-05,2]
[344515480,1733534608634,-10327.5,8.767e-05,2]
[344515481,1733534608665,-6073.25,8.767e-05,2]
[344515482,1733534608698,-500.0,8.767e-05,2]
[344515483,1733534608730,-4445.85,8.767e-05,2]
[344515484,1733534608758,-465.75974321,8.767e-05,2]
[344515485,1733534608798,-500.0,8.767e-05,2]
[344515486,1733534608829,-500.0,8.767e-05,2]
[344515487,1733534608858,-500.0,8.767e-05,2]
[344515488,1733534608887,-878.28,8.767e-05,2]
[344515489,1733534608917,-500.0,8.767e-05,2]
[344515490,1733534608946,-791.73,8.767e-05,2]
[344515491,1733534608976,-2450.46,8.767e-05,2]
[344515492,1733534609005,-1026.86,8.767e-05,2]
[344515493,1733534609033,-500.0,8.767e-05,2]
[344515494,1733534609062,-1408.03,8.767e-05,2]
[344515495,1733534609090,-1992.9,8.767e-05,2]
[344515496,1733534609118,-1184.68,8.767e-05,2]
[344515497,1733534609147,-555.08,8.767e-05,2]
[344515498,1733534609177,-500.0,8.767e-05,2]
[344515499,1733534609206,-1524.13,8.767e-05,2]
[344515500,1733534609234,-500.0,8.767e-05,2]
[344515501,1733534609265,-676.95,8.767e-05,2]
[344515502,1733534609299,-2762.76,8.767e-05,2]
[344515503,1733534609330,-1555.56,8.767e-05,2]
[344515504,1733534609362,-2989.31,8.767e-05,2]
[344515505,1733534609394,-696.35,8.767e-05,2]
[344515506,1733534609426,-781.7,8.767e-05,2]
[344515507,1733534609459,-500.0,8.767e-05,2]
[344515508,1733534609491,-1512.78,8.767e-05,2]
[344515509,1733534609524,-500.0,8.767e-05,2]
[344515510,1733534609559,-4641.13,8.767e-05,2]
[344515511,1733534609590,-500.0,8.767e-05,2]
[344515512,1733534609620,-500.0,8.767e-05,2]
[344515513,1733534609651,-5964.0,8.767e-05,2]
[344515514,1733534609684,-3892.95,8.767e-05,2]
[344515515,1733534609716,-500.0,8.767e-05,2]
[344515516,1733534609748,-500.0,8.767e-05,2]
[344515517,1733534609782,-568.38,8.767e-05,2]
[344515518,1733534609812,-500.0,8.767e-05,2]
[344515519,1733534609844,-10751.97,8.767e-05,2]
[344515520,1733534609875,-217.579,8.767e-05,2]
[344515521,1733534609904,-746.04,8.767e-05,2]
[344515522,1733534609935,-500.0,8.767e-05,2]
[344515523,1733534609977,-716.15,8.767e-05,2]
[344515524,1733534610008,-500.0,8.767e-05,2]
[344515525,1733534610042,-500.0,8.767e-05,2]
[344515526,1733534610072,-500.0,8.767e-05,2]
[344515527,1733534610101,-2290.7,8.767e-05,2]
[344515528,1733534610132,-1258.905,8.767e-05,2]
[344515529,1733534610162,-500.0,8.767e-05,2]
[344515530,1733534610194,-500.0,8.767e-05,2]
[344515531,1733534610225,-836.8,8.767e-05,2]
[344515532,1733534610255,-500.0,8.767e-05,2]
[344515533,1733534610289,-6840.25,8.767e-05,2]
[344515534,1733534610319,-2523.76,8.767e-05,2]
[344515535,1733534610352,-500.0,8.767e-05,2]
[344515536,1733534610381,-2349.79,8.767e-05,2]
[344515537,1733534610413,-500.0,8.767e-05,2]
[344515538,1733534610442,-4375.365,8.767e-05,2]
[344515539,1733534610475,-500.0,8.767e-05,2]
[344515540,1733534610505,-500.0,8.767e-05,2]
[344515541,1733534610537,-888.53,8.767e-05,2]
[344515542,1733534610566,-500.0,8.767e-05,2]
[344515543,1733534610596,-500.0,8.767e-05,2]
[344515544,1733534610627,-500.0,8.767e-05,2]
[344515545,1733534610656,-1022.46,8.767e-05,2]
[344515546,1733534610685,-500.0,8.767e-05,2]
[344515547,1733534610713,-500.0,8.767e-05,2]
[344515548,1733534610742,-2980.66,8.767e-05,2]
[344515549,1733534610772,-913.03,8.767e-05,2]
[344515550,1733534610801,-2894.23,8.767e-05,2]
[344515551,1733534610847,-500.0,8.767e-05,2]
[344515552,1733534610881,-1527.17,8.767e-05,2]
[344515553,1733534610914,-500.0,8.767e-05,2]
[344515554,1733534610946,-500.0,8.767e-05,2]
[344515555,1733534610978,-1713.17,8.767e-05,2]
[344515556,1733534611009,-4873.13,8.767e-05,2]
[344515557,1733534611039,-500.0,8.767e-05,2]
[344515558,1733534611069,-1098.0,8.767e-05,2]
[344515559,1733534611098,-500.0,8.767e-05,2]
[344515560,1733534611129,-500.0,8.767e-05,2]
[344515561,1733534611160,-500.0,8.767e-05,2]
[344515562,1733534611190,-500.0,8.767e-05,2]
[344515563,1733534611221,-1524.69,8.767e-05,2]
[344515564,1733534611252,-500.0,8.767e-05,2]
[344515565,1733534611283,-4862.07,8.767e-05,2]
[344515566,1733534611312,-500.0,8.767e-05,2]
[344515567,1733534611344,-500.0,8.767e-05,2]
[344515568,1733534611373,-919.32,8.767e-05,2]
[344515569,1733534611404,-597.56,8.767e-05,2]
[344515570,1733534611437,-3401.85,8.767e-05,2]
[344515571,1733534611480,-1496.46,8.767e-05,2]
[344515572,1733534611513,-500.0,8.767e-05,2]
[344515573,1733534611549,-500.0,8.767e-05,2]
[344515574,1733534611581,-500.0,8.767e-05,2]
[344515575,1733534611614,-1248.35,8.767e-05,2]
[344515576,1733534611647,-500.0,8.767e-05,2]
[344515577,1733534611681,-500.0,8.767e-05,2]
[344515578,1733534611713,-500.0,8.767e-05,2]
[344515579,1733534611745,-1020.37,8.767e-05,2]
[344515580,1733534611779,-500.0,8.767e-05,2]
[344515581,1733534611814,-8245.82,8.767e-05,2]
[344515582,1733534611848,-896.87,8.767e-05,2]
[344515583,1733534611881,-3333.7,8.767e-05,2]
[344515584,1733534611914,-1590.36,8.767e-05,2]
[344515585,1733534611944,-2526.79,8.767e-05,2]
[344515586,1733534611974,-1622.98,8.767e-05,2]
[344515587,1733534612004,-1000.1,8.767e-05,2]
[344515588,1733534612034,-500.0,8.767e-05,2]
[344515589,1733534612064,-811.71,8.767e-05,2]
[344515590,1733534612099,-721.26,8.767e-05,2]
[344515591,1733534612130,-500.0,8.767e-05,2]
[344515592,1733534612161,-500.0,8.767e-05,2]
[344515593,1733534612193,-1938.93,8.767e-05,2]
[344515594,1733534612225,-1317.63,8.767e-05,2]
[344515595,1733534612256,-2502.24,8.767e-05,2]
[344515596,1733534612287,-500.0,8.767e-05,2]
[344515597,1733534612316,-500.0,8.767e-05,2]
[344515598,1733534612348,-2291.48,8.767e-05,2]
[344515599,1733534612381,-1122.52,8.767e-05,2]
[344515600,1733534612417,-563.88,8.767e-05,2]
[344515601,1733534612450,-674.26,8.767e-05,2]
[344515602,1733534612485,-18015.04,8.767e-05,2]
[344515603,1733534612521,-2253.9,8.767e-05,2]
[344515604,1733534612553,-500.0,8.767e-05,2]
[344515605,1733534612583,-500.0,8.767e-05,2]
[344515606,1733534612613,-500.0,8.767e-05,2]
[344515607,1733534612645,-814.7,8.767e-05,2]
[344515608,1733534612676,-709.4,8.767e-05,2]
[344515609,1733534612707,-3188.34,8.767e-05,2]
[344515610,1733534612740,-5849.38,8.767e-05,2]
[344515611,1733534612771,-6076.91,8.767e-05,2]
[344515612,1733534612804,-4051.34,8.767e-05,2]
[344515613,1733534612836,-1464.61,8.767e-05,2]
[344515614,1733534612869,-921.65,8.767e-05,2]
[344515615,1733534612905,-500.0,8.767e-05,2]
[344515616,1733534612939,-735.32,8.767e-05,2]
[344515617,1733534612970,-2054.61,8.767e-05,2]
[344515618,1733534613352,-3069.91,8.767e-05,2]
[344515619,1733534613386,-955.64,8.767e-05,2]
[344515620,1733534613431,-500.0,8.767e-05,2]
[344515621,1733534613472,-500.0,8.767e-05,2]
[344515622,1733534613508,-500.0,8.767e-05,2]
[344515623,1733534613542,-500.0,8.767e-05,2]
[344515624,1733534613577,-1426.36,8.767e-05,2]
[344515625,1733534613611,-500.0,8.767e-05,2]
[344515626,1733534613645,-4936.71,8.767e-05,2]
[344515627,1733534613679,-1856.49,8.767e-05,2]
[344515628,1733534613714,-1499.61,8.767e-05,2]
[344515629,1733534613751,-1817.28,8.767e-05,2]
[344515630,1733534613785,-2235.64,8.767e-05,2]
[344515631,1733534613818,-513.77,8.767e-05,2]
[344515632,1733534613854,-500.0,8.767e-05,2]
[344515633,1733534613887,-1248.89,8.767e-05,2]
[344515634,1733534613920,-500.0,8.767e-05,2]
[344515635,1733534613951,-433.65874874,8.767e-05,2]
[344515636,1733534613986,-5257.03,8.767e-05,2]
[344515637,1733534614017,-500.0,8.767e-05,2]
[344515638,1733534614051,-1983.53,8.767e-05,2]
[344515639,1733534614084,-2485.82,8.767e-05,2]
[344515640,1733534614116,-500.0,8.767e-05,2]
[344515641,1733534614148,-500.0,8.767e-05,2]
[344515642,1733534614181,-7158.83,8.767e-05,2]
[344515643,1733534614212,-500.0,8.767e-05,2]
[344515644,1733534614246,-1665.73,8.767e-05,2]
[344515645,1733534614280,-500.0,8.767e-05,2]
[344515646,1733534614312,-1823.77,8.767e-05,2]
[344515647,1733534614343,-1783.64,8.767e-05,2]
[344515648,1733534614375,-500.0,8.767e-05,2]
[344515649,1733534614407,-500.0,8.767e-05,2]
[344515650,1733534614441,-500.0,8.767e-05,2]
[344515651,1733534614478,-500.0,8.767e-05,2]
[344515652,1733534614511,-665.68,8.767e-05,2]
[344515653,1733534614544,-2537.64,8.767e-05,2]
[344515654,1733534614576,-1392.61,8.767e-05,2]
[344515655,1733534614606,-500.0,8.767e-05,2]
[344515656,1733534614637,-731.26,8.767e-05,2]
[344515657,1733534614669,-500.0,8.767e-05,2]
[344515658,1733534614703,-1464.06,8.767e-05,2]
[344515659,1733534614736,-1525.33,8.767e-05,2]
[344515660,1733534614767,-500.0,8.767e-05,2]
[344515661,1733534614796,-500.0,8.767e-05,2]
[344515662,1733534614825,-500.0,8.767e-05,2]
[344515663,1733534614856,-610.96,8.767e-05,2]
[344515664,1733534614887,-1037.86,8.767e-05,2]
[344515665,1733534614920,-251.24782282,8.767e-05,2]
[344515666,1733534614950,-664.08,8.767e-05,2]
[344515667,1733534614980,-5174.44,8.767e-05,2]
[344515668,1733534615010,-500.0,8.767e-05,2]
[344515669,1733534615055,-500.0,8.767e-05,2]
[344515670,1733534615091,-500.0,8.767e-05,2]
[344515671,1733534615124,-2410.74,8.767e-05,2]
[344515672,1733534615156,-500.0,8.767e-05,2]
[344515673,1733534615190,-1736.23,8.767e-05,2]
[344515674,1733534615224,-500.0,8.767e-05,2]
[344515675,1733534615257,-500.0,8.767e-05,2]
[344515676,1733534615291,-561.02,8.767e-05,2]
[344515677,1733534615326,-500.0,8.767e-05,2]
[344515678,1733534615357,-378.02481648,8.767e-05,2]
[344515679,1733534615390,-500.0,8.767e-05,2]
[344515680,1733534615422,-500.0,8.767e-05,2]
[344515681,1733534615458,-1155.21,8.767e-05,2]
[344515682,1733534615493,-500.0,8.767e-05,2]
[344515683,1733534615543,-500.0,8.767e-05,2]
[344515684,1733534615576,-1921.14,8.767e-05,2]
[344515685,1733534615609,-1153.75,8.767e-05,2]
[344515686,1733534615643,-500.0,8.767e-05,2]
[344515687,1733534615675,-3625.92,8.767e-05,2]
[344515688,1733534615706,-500.0,8.767e-05,2]
[344515689,1733534615739,-500.0,8.767e-05,2]
[344515690,1733534615770,-500.0,8.767e-05,2]
[344515691,1733534615802,-500.0,8.767e-05,2]
[344515692,1733534615832,-500.0,8.767e-05,2]
[344515693,1733534615865,-581.95342907,8.767e-05,2]
[344515694,1733534615897,-500.0,8.767e-05,2]
[344515695,1733534615928,-1554.04,8.767e-05,2]
[344515696,1733534615961,-582.93,8.767e-05,2]
[344515697,1733534615994,-500.0,8.767e-05,2]
[344515698,1733534616025,-500.0,8.767e-05,2]
[344515699,1733534616073,-748.31,8.767e-05,2]
[344515700,1733534616104,-557.61965842,8.767e-05,2]
[344515701,1733534616134,-500.0,8.767e-05,2]
[344515702,1733534616164,-2553.78,8.767e-05,2]
[344515703,1733534616195,-500.0,8.767e-05,2]
[344515704,1733534616226,-500.0,8.767e-05,2]
[344515705,1733534616258,-1580.76,8.767e-05,2]
[344515706,1733534616288,-1671.64,8.767e-05,2]
[344515707,1733534616318,-500.0,8.767e-05,2]
[344515708,1733534616350,-500.0,8.767e-05,2]
[344515709,1733534616380,-500.0,8.767e-05,2]
[344515710,1733534616410,-500.0,8.767e-05,2]
[344515711,1733534616442,-968.24,8.767e-05,2]
[344515712,1733534616479,-500.0,8.767e-05,2]
[344515713,1733534616512,-2197.28,8.767e-05,2]
[344515714,1733534616546,-500.0,8.767e-05,2]
[344515715,1733534616594,-203.1889612,8.767e-05,2]
[344515716,1733534616627,-2425.6,8.767e-05,2]
[344515717,1733534616663,-500.0,8.767e-05,2]
[344515718,1733534616696,-1294.74,8.767e-05,2]
[344515719,1733534616730,-1171.67,8.767e-05,2]
[344515720,1733534616765,-9550.42,8.767e-05,2]
[344515721,1733534616801,-500.0,8.767e-05,2]
[344515722,1733534616833,-750.83,8.767e-05,2]
[344515723,1733534616865,-500.0,8.767e-05,2]
[344515724,1733534616897,-528.44,8.767e-05,2]
[344515725,1733534616928,-620.16,8.767e-05,2]
[344515726,1733534616959,-1340.29,8.767e-05,2]
[344515727,1733534616990,-500.0,8.767e-05,2]
[344515728,1733534617022,-834.71,8.767e-05,2]
[344515729,1733534617054,-953.56,8.767e-05,2]
[344515730,1733534617101,-1111.02,8.767e-05,2]
[344515731,1733534617133,-500.0,8.767e-05,2]
[344515732,1733534617168,-220.05307507,8.781e-05,2]
[344515733,1733534617207,-220.05307507,8.825e-05,2]
[344515734,1733534617243,-150.0,8.828e-05,2]
[344515735,1733534617279,-220.05307507,8.868e-05,2]
[344515736,1733534617313,-426.43795776,8.877e-05,2]
[344515737,1733534617349,-150.0,8.904e-05,2]
[344515738,1733534617381,-150.0,8.904e-05,2]
[344515739,1733534617412,-150.0,8.904e-05,2]
[344515740,1733534617443,-150.0,8.904e-05,2]
[344515741,1733534617480,-220.05307507,8.911e-05,2]
[344515742,1733534617512,-2500.0,8.913e-05,2]
[344515743,1733534617548,-2500.0,8.913e-05,2]
[344515744,1733534617579,-220.05307507,8.954e-05,2]
[344515745,1733534617617,-220.05307507,8.998e-05,2]
[344515746,1733534617651,-1782.9555,8.999e-05,2]
[344515747,1733534617683,-10000.0,9e-05,2]
[344515748,1733534617716,-3000.0,9e-05,2]
[344515749,1733534617749,-900.0,9e-05,3]
[344515750,1733534617781,-150.973509,9.014e-05,2]
[344515751,1733534617820,-945.21,9.041e-05,2]
[344515752,1733534617862,-500.0,9.041e-05,2]
[344515753,1733534617897,-500.0,9.041e-05,2]
[344515754,1733534617931,-500.0,9.041e-05,2]
[344515755,1733534617966,-500.0,9.041e-05,2]
[344515756,1733534617999,-500.0,9.041e-05,2]
[344515757,1733534618035,-500.0,9.041e-05,2]
[344515758,1733534618068,-1163.74,9.041e-05,2]
[344515759,1733534618105,-627.71011558,9.041e-05,2]
[344515760,1733534618138,-853.57,9.041e-05,2]
[344515761,1733534618172,-1245.22,9.041e-05,2]
[344515762,1733534618205,-2197.04,9.041e-05,2]
[344515763,1733534618238,-500.0,9.041e-05,2]
[344515764,1733534618272,-1670.09,9.041e-05,2]
[344515765,1733534618304,-500.0,9.041e-05,2]
[344515766,1733534618335,-725.38,9.041e-05,2]
[344515767,1733534618371,-500.0,9.041e-05,2]
[344515768,1733534618769,-1704.98,9.041e-05,2]
[344515769,1733534618801,-500.0,9.041e-05,2]
[344515770,1733534618832,-500.0,9.041e-05,2]
[344515771,1733534618869,-500.0,9.041e-05,2]
[344515772,1733534618902,-396.67091594,9.041e-05,2]
[344515773,1733534618932,-678.59,9.041e-05,2]
[344515774,1733534618963,-503.57,9.041e-05,2]
[344515775,1733534618992,-1132.25,9.041e-05,2]
[344515776,1733534619022,-1220.76,9.041e-05,2]
[344515777,1733534619052,-1265.94,9.041e-05,2]
[344515778,1733534619083,-500.0,9.041e-05,2]
[344515779,1733534619122,-500.0,9.041e-05,2]
[344515780,1733534619154,-752.05,9.041e-05,2]
[344515781,1733534619187,-500.0,9.041e-05,2]
[344515782,1733534619218,-2267.5,9.041e-05,2]
[344515783,1733534619250,-500.0,9.041e-05,2]
[344515784,1733534619280,-500.0,9.041e-05,2]
[344515785,1733534619310,-1615.99,9.041e-05,2]
[344515786,1733534619347,-305.19600586,9.041e-05,2]
[344515787,1733534619377,-1420.89,9.041e-05,2]
[344515788,1733534619410,-500.0,9.041e-05,2]
[344515789,1733534619441,-1426.88,9.041e-05,2]
[344515790,1733534619479,-628.29,9.041e-05,2]
[344515791,1733534619511,-2472.38,9.041e-05,2]
[344515792,1733534619544,-1911.04,9.041e-05,2]
[344515793,1733534619575,-1987.1,9.041e-05,2]
[344515794,1733534619617,-500.0,9.041e-05,2]
[344515795,1733534619649,-1972.26,9.041e-05,2]
[344515796,1733534619680,-2440.64,9.041e-05,2]
[344515797,1733534619710,-500.0,9.041e-05,2]
[344515798,1733534619740,-180.41660203,9.041e-05,2]
[344515799,1733534619770,-2962.07,9.041e-05,2]
[344515800,1733534619802,-612.76373201,9.041e-05,2]
[344515801,1733534619833,-1429.3,9.041e-05,2]
[344515802,1733534619863,-1689.51,9.041e-05,2]
[344515803,1733534619894,-1575.83,9.041e-05,2]
[344515804,1733534619924,-1204.31,9.041e-05,2]
[344515805,1733534619956,-500.0,9.041e-05,2]
[344515806,1733534619987,-500.0,9.041e-05,2]
[344515807,1733534620020,-1139.66,9.041e-05,2]
[344515808,1733534620052,-1037.0,9.041e-05,2]
[344515809,1733534620083,-500.0,9.041e-05,2]
[344515810,1733534620121,-1418.65,9.041e-05,2]
[344515811,1733534620155,-500.0,9.041e-05,2]
[344515812,1733534620187,-1875.73,9.041e-05,2]
[344515813,1733534620220,-500.0,9.041e-05,2]
[344515814,1733534620253,-500.0,9.041e-05,2]
[344515815,1733534620286,-500.0,9.041e-05,2]
[344515816,1733534620318,-500.0,9.041e-05,2]
[344515817,1733534620350,-873.76,9.041e-05,2]
[344515818,1733534620384,-588.28,9.041e-05,2]
[344515819,1733534620417,-502.02761898,9.041e-05,2]
[344515820,1733534620452,-1927.52,9.041e-05,2]
[344515821,1733534620484,-689.41,9.041e-05,2]
[344515822,1733534620519,-574.63,9.041e-05,2]
[344515823,1733534620554,-269.83065527,9.041e-05,2]
[344515824,1733534620587,-1314.25,9.041e-05,2]
[344515825,1733534620625,-500.0,9.041e-05,2]
[344515826,1733534620657,-2269.31,9.041e-05,2]
[344515827,1733534620689,-500.0,9.041e-05,2]
[344515828,1733534620724,-2557.35,9.041e-05,2]
[344515829,1733534620756,-500.0,9.041e-05,2]
[344515830,1733534620788,-1042.33,9.041e-05,2]
[344515831,1733534620821,-2288.51,9.041e-05,2]
[344515832,1733534620863,-500.0,9.041e-05,2]
[344515833,1733534620895,-1313.98,9.041e-05,2]
[344515834,1733534620927,-500.0,9.041e-05,2]
[344515835,1733534620959,-265.22422371,9.041e-05,2]
[344515836,1733534620989,-500.0,9.041e-05,2]
[344515837,1733534621021,-1579.06,9.041e-05,2]
[344515838,1733534621051,-500.0,9.041e-05,2]
[344515839,1733534621081,-639.49,9.041e-05,2]
[344515840,1733534621123,-1489.57,9.041e-05,2]
[344515841,1733534621156,-1973.67,9.041e-05,2]
[344515842,1733534621187,-500.0,9.041e-05,2]
[344515843,1733534621218,-500.0,9.041e-05,2]
[344515844,1733534621250,-500.0,9.041e-05,2]
[344515845,1733534621281,-1336.14,9.041e-05,2]
[344515846,1733534621313,-598.85,9.041e-05,2]
[344515847,1733534621343,-1410.28,9.041e-05,2]
[344515848,1733534621373,-500.0,9.041e-05,2]
[344515849,1733534621404,-500.0,9.041e-05,2]
[344515850,1733534621435,-1652.97,9.041e-05,2]
[344515851,1733534621467,-1682.55,9.041e-05,2]
[344515852,1733534621500,-2080.01,9.041e-05,2]
[344515853,1733534621532,-4172.15,9.041e-05,2]
[344515854,1733534621565,-500.0,9.041e-05,2]
[344515855,1733534621600,-277.01466111,9.041e-05,2]
[344515856,1733534621631,-1426.43,9.041e-05,2]
[344515857,1733534621664,-1051.53,9.041e-05,2]
[344515858,1733534621696,-1496.52,9.041e-05,2]
[344515859,1733534621726,-1829.66,9.041e-05,2]
[344515860,1733534621759,-2450.83,9.041e-05,2]
[344515861,1733534621792,-500.0,9.041e-05,2]
[344515862,1733534621824,-500.0,9.041e-05,2]
[344515863,1733534621861,-500.0,9.041e-05,2]
[344515864,1733534621892,-500.0,9.041e-05,2]
[344515865,1733534621923,-500.0,9.041e-05,2]
[344515866,1733534621953,-1067.22,9.041e-05,2]
[344515867,1733534621984,-3170.17,9.041e-05,2]
[344515868,1733534622018,-500.0,9.041e-05,2]
[344515869,1733534622050,-1635.57,9.041e-05,2]
[344515870,1733534622082,-500.0,9.041e-05,2]
[344515871,1733534622119,-2791.9,9.041e-05,2]
[344515872,1733534622151,-873.81,9.041e-05,2]
[344515873,1733534622183,-500.0,9.041e-05,2]
[344515874,1733534622213,-1306.08,9.041e-05,2]
[344515875,1733534622246,-500.0,9.041e-05,2]
[344515876,1733534622279,-1375.26,9.041e-05,2]
[344515877,1733534622312,-2435.51,9.041e-05,2]
[344515878,1733534622348,-515.83,9.041e-05,2]
[344515879,1733534622381,-263.32696739,9.041e-05,2]
[344515880,1733534622415,-1385.01,9.041e-05,2]
[344515881,1733534622456,-1388.39,9.041e-05,2]
[344515882,1733534622487,-500.0,9.041e-05,2]
[344515883,1733534622520,-500.0,9.041e-05,2]
[344515884,1733534622553,-554.39132743,9.041e-05,2]
[344515885,1733534622584,-1319.34,9.041e-05,2]
[344515886,1733534622620,-760.24,9.041e-05,2]
[344515887,1733534622652,-500.0,9.041e-05,2]
[344515888,1733534622683,-500.0,9.041e-05,2]
[344515889,1733534622712,-500.0,9.041e-05,2]
[344515890,1733534622743,-500.0,9.041e-05,2]
[344515891,1733534622792,-500.0,9.041e-05,2]
[344515892,1733534622825,-3134.44,9.041e-05,2]
[344515893,1733534622860,-1212.53,9.041e-05,2]
[344515894,1733534622891,-1534.55,9.041e-05,2]
[344515895,1733534622922,-1019.07,9.041e-05,2]
[344515896,1733534622953,-500.0,9.041e-05,2]
[344515897,1733534622983,-1771.79,9.041e-05,2]
[344515898,1733534623014,-875.16,9.041e-05,2]
[344515899,1733534623046,-652.19,9.041e-05,2]
[344515900,1733534623078,-500.0,9.041e-05,2]
[344515901,1733534623116,-500.0,9.041e-05,2]
[344515902,1733534623148,-507.77,9.041e-05,2]
[344515903,1733534623181,-1672.05,9.041e-05,2]
[344515904,1733534623213,-455.07763113,9.041e-05,2]
[344515905,1733534623246,-2090.14,9.041e-05,2]
[344515906,1733534623277,-743.9,9.041e-05,2]
[344515907,1733534623308,-500.0,9.041e-05,2]
[344515908,1733534623338,-500.0,9.041e-05,2]
[344515909,1733534623371,-1293.57,9.041e-05,2]
[344515910,1733534623402,-1615.18,9.041e-05,2]
[344515911,1733534623440,-500.0,9.041e-05,2]
[344515912,1733534623476,-500.0,9.041e-05,2]
[344515913,1733534623508,-582.08,9.041e-05,2]
[344515914,1733534623541,-500.0,9.041e-05,2]
[344515915,1733534623576,-727.15,9.041e-05,2]
[344515916,1733534623615,-778.61,9.041e-05,2]
[344515917,1733534623647,-2314.43,9.041e-05,2]
[344515918,1733534624045,-500.0,9.041e-05,2]
[344515919,1733534624077,-1013.27,9.041e-05,2]
[344515920,1733534624113,-985.91,9.041e-05,2]
[344515921,1733534624145,-500.0,9.041e-05,2]
[344515922,1733534624176,-500.0,9.041e-05,2]
[344515923,1733534624205,-1171.43,9.041e-05,2]
[344515924,1733534624237,-1416.71,9.041e-05,2]
[344515925,1733534624271,-500.0,9.041e-05,2]
[344515926,1733534624302,-1631.71,9.041e-05,2]
[344515927,1733534624334,-500.0,9.041e-05,2]
[344515928,1733534624369,-500.0,9.041e-05,2]
[344515929,1733534624401,-500.0,9.041e-05,2]
[344515930,1733534624432,-592.6,9.041e-05,2]
[344515931,1733534624468,-500.0,9.041e-05,2]
[344515932,1733534624500,-1758.52,9.041e-05,2]
[344515933,1733534624531,-500.0,9.041e-05,2]
[344515934,1733534624564,-500.0,9.041e-05,2]
[344515935,1733534624601,-500.0,9.041e-05,2]
[344515936,1733534624634,-1009.89,9.041e-05,2]
[344515937,1733534624665,-500.0,9.041e-05,2]
[344515938,1733534624699,-500.0,9.041e-05,2]
[344515939,1733534624729,-500.0,9.041e-05,2]
[344515940,1733534624760,-500.0,9.041e-05,2]
[344515941,1733534624790,-500.0,9.041e-05,2]
[344515942,1733534624821,-1854.79,9.041e-05,2]
[344515943,1733534624851,-519.53,9.041e-05,2]
[344515944,1733534624883,-1350.63,9.041e-05,2]
[344515945,1733534624918,-500.0,9.041e-05,2]
[344515946,1733534624951,-2970.04,9.041e-05,2]
[344515947,1733534624984,-500.0,9.041e-05,2]
[344515948,1733534625015,-426.90861317,9.041e-05,2]
[344515949,1733534625046,-942.17,9.041e-05,2]
[344515950,1733534625077,-718.37,9.041e-05,2]
[344515951,1733534625113,-500.0,9.041e-05,2]
[344515952,1733534625146,-1297.4,9.041e-05,2]
[344515953,1733534625178,-500.0,9.041e-05,2]
[344515954,1733534625211,-1656.99,9.041e-05,2]
[344515955,1733534625244,-500.0,9.041e-05,2]
[344515956,1733534625276,-1113.06,9.041e-05,2]
[344515957,1733534625307,-708.83,9.041e-05,2]
[344515958,1733534625356,-1661.87,9.041e-05,2]
[344515959,1733534625389,-2136.73,9.041e-05,2]
[344515960,1733534625420,-500.0,9.041e-05,2]
[344515961,1733534625460,-500.0,9.041e-05,2]
[344515962,1733534625495,-500.0,9.041e-05,2]
[344515963,1733534625530,-1135.85,9.041e-05,2]
[344515964,1733534625567,-1634.73,9.041e-05,2]
[344515965,1733534625602,-560.78,9.041e-05,2]
[344515966,1733534625636,-1287.33,9.041e-05,2]
[344515967,1733534625670,-500.0,9.041e-05,2]
[344515968,1733534625704,-500.0,9.041e-05,2]
[344515969,1733534625738,-500.0,9.041e-05,2]
[344515970,1733534625772,-1461.49,9.041e-05,2]
[344515971,1733534625805,-500.0,9.041e-05,2]